[Event "Titled Tuesday Blitz March 14 Late 2023"]
[White "Ardila, Oscar Humberto"]
[Black "Vovk, Orest"]
[WhiteFideId "4404742"]
[BlackFideId "14113490"]
[WhiteElo "1911"]
[BlackElo "2215"]
[Result "1-0"]
[Round "04"]
[TimeControl "180+1"]
[Date "2023.03.14"]
[WhiteClock "0:00:45"]
[BlackClock "0:01:15"]

1. d4 {[%clk 0:02:59]}  h6 {[%clk 0:02:54]} 2. c4 {[%clk 0:02:59]}  g5 {[%clk 0:02:34]} 3. h4 {[%clk 0:02:57]}  g4 {[%clk 0:02:34]} 4. e3 {[%clk 0:02:56]}  d6 {[%clk 0:02:29]} 5. Ne2 {[%clk 0:02:55]}  Bg7 {[%clk 0:02:27]} 6. Ng3 {[%clk 0:02:55]}  h5 {[%clk 0:02:25]} 7. Nc3 {[%clk 0:02:54]}  Nf6 {[%clk 0:02:24]} 8. e4 {[%clk 0:02:47]}  c6 {[%clk 0:02:23]} 9. Be2 {[%clk 0:02:46]}  Nbd7 {[%clk 0:02:20]} 10. Bg5 {[%clk 0:02:42]}  Nf8 {[%clk 0:02:19]} 11. e5 {[%clk 0:02:39]}  dxe5 {[%clk 0:02:18]} 12. dxe5 {[%clk 0:02:39]}  Qxd1+ {[%clk 0:02:18]} 13. Rxd1 {[%clk 0:02:37]}  N6d7 {[%clk 0:02:19]} 14. Nf5 {[%clk 0:02:24]}  Bxe5 {[%clk 0:01:56]} 15. Nxe7 {[%clk 0:02:18]}  f6 {[%clk 0:01:51]} 16. Nxc8 {[%clk 0:02:16]}  Rxc8 {[%clk 0:01:46]} 17. Be3 {[%clk 0:02:13]}  Bxc3+ {[%clk 0:01:42]} 18. bxc3 {[%clk 0:02:13]}  Ne6 {[%clk 0:01:42]} 19. O-O {[%clk 0:02:00]}  Ke7 {[%clk 0:01:39]} 20. Rfe1 {[%clk 0:01:47]}  Ndc5 {[%clk 0:01:36]} 21. Bxg4 {[%clk 0:01:41]}  hxg4 {[%clk 0:01:30]} 22. Bxc5+ {[%clk 0:01:41]}  Kf7 {[%clk 0:01:29]} 23. Rd7+ {[%clk 0:01:40]}  Kg6 {[%clk 0:01:28]} 24. Rxe6 {[%clk 0:01:40]}  Rxh4 {[%clk 0:01:29]} 25. Rdd6 {[%clk 0:00:46]}  Rch8 {[%clk 0:01:18]} 26. Rxf6+ {[%clk 0:00:46]}  Kg5 {[%clk 0:01:15]} 27. Be3+ {[%clk 0:00:45]} 1-0


[Site "https://www.chess.com"]

[Event "Titled Tuesday Blitz March 14 Late 2023"]
[White "Averjanov, Alexey"]
[Black "Filgueiras, Nathan Felipe"]
[WhiteFideId "14109867"]
[BlackFideId "2188562"]
[WhiteElo "2715"]
[BlackElo "2241"]
[Result "1-0"]
[Round "04"]
[TimeControl "180+1"]
[Date "2023.03.14"]
[WhiteClock "0:00:49"]
[BlackClock "0:00:02"]

1. d4 {[%clk 0:03:00]}  Nf6 {[%clk 0:03:00]} 2. c4 {[%clk 0:03:01]}  e6 {[%clk 0:03:00]} 3. Nf3 {[%clk 0:03:01]}  b6 {[%clk 0:03:00]} 4. g3 {[%clk 0:03:01]}  Ba6 {[%clk 0:02:59]} 5. Nbd2 {[%clk 0:03:01]}  d5 {[%clk 0:02:54]} 6. Qc2 {[%clk 0:02:59]}  Bb7 {[%clk 0:02:53]} 7. Bg2 {[%clk 0:02:59]}  Be7 {[%clk 0:02:53]} 8. O-O {[%clk 0:02:59]}  O-O {[%clk 0:02:54]} 9. b3 {[%clk 0:02:59]}  Nbd7 {[%clk 0:02:54]} 10. Bb2 {[%clk 0:02:59]}  Rc8 {[%clk 0:02:55]} 11. Rac1 {[%clk 0:02:58]}  c5 {[%clk 0:02:55]} 12. Qb1 {[%clk 0:02:58]}  Qc7 {[%clk 0:02:51]} 13. Rfd1 {[%clk 0:02:56]}  Qb8 {[%clk 0:02:51]} 14. e3 {[%clk 0:02:56]}  Rfd8 {[%clk 0:02:51]} 15. Qa1 {[%clk 0:02:52]}  Qa8 {[%clk 0:02:51]} 16. cxd5 {[%clk 0:02:48]}  exd5 {[%clk 0:02:49]} 17. Ne5 {[%clk 0:02:31]}  Nf8 {[%clk 0:02:29]} 18. Ndf3 {[%clk 0:02:27]}  Ne4 {[%clk 0:02:24]} 19. dxc5 {[%clk 0:02:11]}  bxc5 {[%clk 0:02:23]} 20. Nd3 {[%clk 0:02:11]}  Ne6 {[%clk 0:02:20]} 21. Rc2 {[%clk 0:01:56]}  Bf8 {[%clk 0:01:15]} 22. Nf4 {[%clk 0:01:53]}  N6g5 {[%clk 0:01:07]} 23. Nxg5 {[%clk 0:01:48]}  Nxg5 {[%clk 0:01:08]} 24. h4 {[%clk 0:01:47]}  Ne4 {[%clk 0:00:59]} 25. Nh5 {[%clk 0:01:40]}  d4 {[%clk 0:00:47]} 26. exd4 {[%clk 0:01:37]}  cxd4 {[%clk 0:00:48]} 27. Rxc8 {[%clk 0:01:35]}  Rxc8 {[%clk 0:00:30]} 28. Bxd4 {[%clk 0:01:29]}  g6 {[%clk 0:00:30]} 29. Bxe4 {[%clk 0:01:23]}  gxh5 {[%clk 0:00:25]} 30. Bxb7 {[%clk 0:01:19]}  Qxb7 {[%clk 0:00:26]} 31. Be3 {[%clk 0:01:07]}  a6 {[%clk 0:00:23]} 32. Qf6 {[%clk 0:01:04]}  Qc6 {[%clk 0:00:18]} 33. Qf5 {[%clk 0:00:59]}  Re8 {[%clk 0:00:10]} 34. Qxh5 {[%clk 0:00:57]}  Qc2 {[%clk 0:00:10]} 35. Rd5 {[%clk 0:00:55]}  Qb1+ {[%clk 0:00:03]} 36. Kh2 {[%clk 0:00:53]}  Rxe3 {[%clk 0:00:03]} 37. Qg5+ {[%clk 0:00:49]}  Bg7 {[%clk 0:00:02]} 1-0


[Site "https://www.chess.com"]

[Event "Titled Tuesday Blitz March 14 Late 2023"]
[White "Bilan, Danila"]
[Black "Grinev, Valeriy"]
[WhiteFideId "24161918"]
[BlackFideId "14117517"]
[WhiteElo "2182"]
[BlackElo "2365"]
[Result "0-1"]
[Round "04"]
[TimeControl "180+1"]
[Date "2023.03.14"]
[WhiteClock "0:01:26"]
[BlackClock "0:01:59"]

1. d4 {[%clk 0:03:00]}  Nf6 {[%clk 0:02:56]} 2. Nf3 {[%clk 0:02:59]}  g6 {[%clk 0:02:53]} 3. Bg5 {[%clk 0:02:57]}  Bg7 {[%clk 0:02:52]} 4. c3 {[%clk 0:02:56]}  O-O {[%clk 0:02:46]} 5. Nbd2 {[%clk 0:02:56]}  d6 {[%clk 0:02:43]} 6. e4 {[%clk 0:02:55]}  c5 {[%clk 0:02:43]} 7. Bc4 {[%clk 0:02:52]}  cxd4 {[%clk 0:02:41]} 8. cxd4 {[%clk 0:02:52]}  Nxe4 {[%clk 0:02:41]} 9. Nxe4 {[%clk 0:02:29]}  d5 {[%clk 0:02:33]} 10. Bd3 {[%clk 0:02:29]}  dxe4 {[%clk 0:02:30]} 11. Bxe4 {[%clk 0:02:30]}  Nc6 {[%clk 0:02:29]} 12. O-O {[%clk 0:02:16]}  Bg4 {[%clk 0:02:27]} 13. h3 {[%clk 0:02:05]}  Bxf3 {[%clk 0:02:26]} 14. Bxf3 {[%clk 0:02:03]}  Nxd4 {[%clk 0:02:22]} 15. Bxb7 {[%clk 0:01:46]}  Rb8 {[%clk 0:02:22]} 16. Ba6 {[%clk 0:01:41]}  Qa5 {[%clk 0:02:17]} 17. Bxe7 {[%clk 0:01:27]}  Rfe8 {[%clk 0:02:09]} 18. Bd6 {[%clk 0:01:26]}  Rbd8 {[%clk 0:01:59]} 0-1


[Site "https://www.chess.com"]

[Event "Titled Tuesday Blitz March 14 Late 2023"]
[White "Bilych, Olexiy"]
[Black "Kamsky, Gata"]
[WhiteFideId "14156504"]
[BlackFideId "2000024"]
[WhiteElo "2320"]
[BlackElo "2666"]
[Result "0-1"]
[Round "04"]
[TimeControl "180+1"]
[Date "2023.03.14"]
[WhiteClock "0:00:08"]
[BlackClock "0:00:21"]

1. d4 {[%clk 0:03:00]}  f5 {[%clk 0:02:58]} 2. Bg5 {[%clk 0:02:59]}  g6 {[%clk 0:02:53]} 3. Nc3 {[%clk 0:02:57]}  Nh6 {[%clk 0:02:52]} 4. Nf3 {[%clk 0:02:51]}  Nf7 {[%clk 0:02:52]} 5. Bd2 {[%clk 0:02:51]}  Bg7 {[%clk 0:02:51]} 6. e4 {[%clk 0:02:48]}  fxe4 {[%clk 0:02:48]} 7. Nxe4 {[%clk 0:02:49]}  d5 {[%clk 0:02:48]} 8. Ng3 {[%clk 0:02:34]}  O-O {[%clk 0:02:45]} 9. Bd3 {[%clk 0:02:21]}  Bg4 {[%clk 0:02:43]} 10. c3 {[%clk 0:01:57]}  e5 {[%clk 0:02:42]} 11. dxe5 {[%clk 0:01:50]}  Nxe5 {[%clk 0:02:41]} 12. Be2 {[%clk 0:01:51]}  Nxf3+ {[%clk 0:02:20]} 13. gxf3 {[%clk 0:01:52]}  Bh3 {[%clk 0:02:20]} 14. Qb3 {[%clk 0:01:52]}  b6 {[%clk 0:02:02]} 15. O-O-O {[%clk 0:01:50]}  c6 {[%clk 0:01:58]} 16. Be3 {[%clk 0:01:44]}  Nd7 {[%clk 0:01:57]} 17. c4 {[%clk 0:01:40]}  Nc5 {[%clk 0:01:41]} 18. Bxc5 {[%clk 0:01:13]}  bxc5 {[%clk 0:01:40]} 19. cxd5 {[%clk 0:01:14]}  Qg5+ {[%clk 0:01:25]} 20. Qe3 {[%clk 0:01:11]}  Qf6 {[%clk 0:01:22]} 21. Qd2 {[%clk 0:01:11]}  cxd5 {[%clk 0:01:19]} 22. Qxd5+ {[%clk 0:01:10]}  Be6 {[%clk 0:01:18]} 23. Qd2 {[%clk 0:01:03]}  Rab8 {[%clk 0:01:18]} 24. Ne4 {[%clk 0:01:00]}  Qxb2+ {[%clk 0:01:00]} 25. Qxb2 {[%clk 0:01:00]}  Rxb2 {[%clk 0:01:00]} 26. Rd6 {[%clk 0:00:53]}  Bxa2 {[%clk 0:00:53]} 27. Bd3 {[%clk 0:00:49]}  c4 {[%clk 0:00:51]} 28. Bc2 {[%clk 0:00:45]}  c3 {[%clk 0:00:50]} 29. Ra6 {[%clk 0:00:40]}  Bh6+ {[%clk 0:00:49]} 30. Kd1 {[%clk 0:00:37]}  Rd8+ {[%clk 0:00:49]} 31. Nd6 {[%clk 0:00:34]}  Bc4 {[%clk 0:00:40]} 32. Rc6 {[%clk 0:00:31]}  Bb5 {[%clk 0:00:40]} 33. Rc8 {[%clk 0:00:29]}  Rxc8 {[%clk 0:00:40]} 34. Nxc8 {[%clk 0:00:30]}  a5 {[%clk 0:00:31]} 35. Ne7+ {[%clk 0:00:29]}  Kg7 {[%clk 0:00:30]} 36. Nd5 {[%clk 0:00:30]}  Ra2 {[%clk 0:00:28]} 37. Nxc3 {[%clk 0:00:22]}  Ra1+ {[%clk 0:00:28]} 38. Nb1 {[%clk 0:00:23]}  a4 {[%clk 0:00:28]} 39. Be4 {[%clk 0:00:23]}  a3 {[%clk 0:00:27]} 40. Kc2 {[%clk 0:00:18]}  a2 {[%clk 0:00:27]} 41. Kb2 {[%clk 0:00:17]}  axb1=Q+ {[%clk 0:00:26]} 42. Bxb1 {[%clk 0:00:18]}  Ra7 {[%clk 0:00:25]} 43. Rd1 {[%clk 0:00:18]}  Bf4 {[%clk 0:00:25]} 44. Rd5 {[%clk 0:00:17]}  Bc6 {[%clk 0:00:24]} 45. Rc5 {[%clk 0:00:16]}  Bxf3 {[%clk 0:00:24]} 46. h4 {[%clk 0:00:16]}  Rb7+ {[%clk 0:00:22]} 47. Ka1 {[%clk 0:00:16]}  Bd6 {[%clk 0:00:21]} 48. Ra5 {[%clk 0:00:14]}  Bb4 {[%clk 0:00:21]} 49. Rg5 {[%clk 0:00:07]}  Bc3+ {[%clk 0:00:21]} 50. Ka2 {[%clk 0:00:07]}  Rb2+ {[%clk 0:00:21]} 51. Ka1 {[%clk 0:00:07]}  Rb5+ {[%clk 0:00:21]} 52. Ka2 {[%clk 0:00:07]}  Rxg5 {[%clk 0:00:21]} 53. hxg5 {[%clk 0:00:08]}  Bd4 {[%clk 0:00:21]} 0-1


[Site "https://www.chess.com"]

[Event "Titled Tuesday Blitz March 14 Late 2023"]
[White "Bortnyk, Olexandr"]
[Black "Godzwon, Iwo"]
[WhiteFideId "14120828"]
[BlackFideId "21802483"]
[WhiteElo "2734"]
[BlackElo "2284"]
[Result "1-0"]
[Round "04"]
[TimeControl "180+1"]
[Date "2023.03.14"]
[WhiteClock "0:01:30"]
[BlackClock "0:01:17"]

1. d4 {[%clk 0:02:57]}  Nf6 {[%clk 0:02:56]} 2. Nc3 {[%clk 0:02:58]}  d5 {[%clk 0:02:54]} 3. Bf4 {[%clk 0:02:58]}  c6 {[%clk 0:02:49]} 4. e3 {[%clk 0:02:58]}  Bf5 {[%clk 0:02:43]} 5. Nf3 {[%clk 0:02:59]}  e6 {[%clk 0:02:43]} 6. Ne5 {[%clk 0:02:59]}  Nbd7 {[%clk 0:02:42]} 7. g4 {[%clk 0:02:59]}  Bg6 {[%clk 0:02:42]} 8. h4 {[%clk 0:03:00]}  h6 {[%clk 0:02:23]} 9. Nxg6 {[%clk 0:03:00]}  fxg6 {[%clk 0:02:23]} 10. Bd3 {[%clk 0:03:01]}  Kf7 {[%clk 0:02:20]} 11. Qf3 {[%clk 0:03:01]}  Bb4 {[%clk 0:02:14]} 12. O-O-O {[%clk 0:02:52]}  Bxc3 {[%clk 0:02:03]} 13. bxc3 {[%clk 0:02:53]}  Kg8 {[%clk 0:02:03]} 14. Bxg6 {[%clk 0:02:46]}  Qa5 {[%clk 0:02:03]} 15. g5 {[%clk 0:02:46]}  Ne4 {[%clk 0:01:55]} 16. Bxe4 {[%clk 0:02:30]}  dxe4 {[%clk 0:01:56]} 17. Qxe4 {[%clk 0:02:30]}  Re8 {[%clk 0:01:56]} 18. gxh6 {[%clk 0:02:25]}  Qxc3 {[%clk 0:01:52]} 19. Rdg1 {[%clk 0:02:20]}  Rh7 {[%clk 0:01:45]} 20. Qg6 {[%clk 0:01:56]}  Re7 {[%clk 0:01:43]} 21. Bd6 {[%clk 0:01:36]}  Rf7 {[%clk 0:01:41]} 22. Qxe6 {[%clk 0:01:31]}  Qa3+ {[%clk 0:01:17]} 23. Bxa3 {[%clk 0:01:30]} 1-0


[Site "https://www.chess.com"]

[Event "Titled Tuesday Blitz March 14 Late 2023"]
[White "Burg, Twan"]
[Black "Osmak, Yuliia"]
[WhiteFideId "1010697"]
[BlackFideId "14101602"]
[WhiteElo "2422"]
[BlackElo "2271"]
[Result "1-0"]
[Round "04"]
[TimeControl "180+1"]
[Date "2023.03.14"]
[WhiteClock "0:00:43"]
[BlackClock "0:00:02"]

1. e4 {[%clk 0:02:59]}  c6 {[%clk 0:02:58]} 2. Nf3 {[%clk 0:02:59]}  d5 {[%clk 0:02:59]} 3. Nc3 {[%clk 0:03:00]}  Bg4 {[%clk 0:02:56]} 4. h3 {[%clk 0:03:00]}  Bxf3 {[%clk 0:02:56]} 5. Qxf3 {[%clk 0:03:01]}  e6 {[%clk 0:02:52]} 6. d4 {[%clk 0:03:01]}  Nf6 {[%clk 0:02:46]} 7. exd5 {[%clk 0:03:02]}  cxd5 {[%clk 0:02:41]} 8. Bd3 {[%clk 0:03:02]}  Nc6 {[%clk 0:02:41]} 9. Ne2 {[%clk 0:03:02]}  Be7 {[%clk 0:02:34]} 10. c3 {[%clk 0:03:03]}  O-O {[%clk 0:02:33]} 11. O-O {[%clk 0:03:02]}  a6 {[%clk 0:02:24]} 12. Re1 {[%clk 0:03:02]}  b5 {[%clk 0:02:23]} 13. Bf4 {[%clk 0:02:51]}  b4 {[%clk 0:02:09]} 14. Rac1 {[%clk 0:02:48]}  bxc3 {[%clk 0:02:07]} 15. bxc3 {[%clk 0:02:42]}  Na5 {[%clk 0:02:00]} 16. Be5 {[%clk 0:02:28]}  Nc4 {[%clk 0:01:56]} 17. Nf4 {[%clk 0:02:21]}  Rc8 {[%clk 0:01:44]} 18. Rc2 {[%clk 0:02:11]}  a5 {[%clk 0:01:07]} 19. Ne2 {[%clk 0:01:54]}  Nxe5 {[%clk 0:01:01]} 20. dxe5 {[%clk 0:01:54]}  Nd7 {[%clk 0:01:01]} 21. Nd4 {[%clk 0:01:55]}  g6 {[%clk 0:00:56]} 22. Bb5 {[%clk 0:01:48]}  Bc5 {[%clk 0:00:46]} 23. Nb3 {[%clk 0:01:41]}  Bb6 {[%clk 0:00:38]} 24. a4 {[%clk 0:01:40]}  Nc5 {[%clk 0:00:34]} 25. Nd4 {[%clk 0:01:32]}  Ne4 {[%clk 0:00:32]} 26. Nc6 {[%clk 0:01:31]}  Qc7 {[%clk 0:00:22]} 27. c4 {[%clk 0:01:29]}  Nxf2 {[%clk 0:00:12]} 28. Rxf2 {[%clk 0:01:25]}  dxc4 {[%clk 0:00:12]} 29. Rc1 {[%clk 0:01:21]}  Bxf2+ {[%clk 0:00:12]} 30. Qxf2 {[%clk 0:01:21]}  c3 {[%clk 0:00:08]} 31. Rxc3 {[%clk 0:01:19]}  Qd7 {[%clk 0:00:08]} 32. Rd3 {[%clk 0:01:19]}  Qb7 {[%clk 0:00:07]} 33. Qc5 {[%clk 0:01:15]}  Rc7 {[%clk 0:00:06]} 34. Rd6 {[%clk 0:01:09]}  Rfc8 {[%clk 0:00:06]} 35. h4 {[%clk 0:01:08]}  Kg7 {[%clk 0:00:06]} 36. h5 {[%clk 0:00:56]}  g5 {[%clk 0:00:06]} 37. h6+ {[%clk 0:00:50]}  Kxh6 {[%clk 0:00:06]} 38. Qf2 {[%clk 0:00:51]}  Rxc6 {[%clk 0:00:03]} 39. Qf6+ {[%clk 0:00:50]}  Kh5 {[%clk 0:00:03]} 40. Be2+ {[%clk 0:00:43]}  g4 {[%clk 0:00:02]} 41. Bxg4+ {[%clk 0:00:43]}  Kxg4 {[%clk 0:00:02]} 42. Rd4+ {[%clk 0:00:43]}  Kg3 {[%clk 0:00:02]} 43. Qh4# {[%clk 0:00:43]} 1-0


[Site "https://www.chess.com"]

[Event "Titled Tuesday Blitz March 14 Late 2023"]
[White "Chabris, Christopher"]
[Black "Kostiukov, Alexandr"]
[WhiteFideId "2005263"]
[BlackFideId "14108100"]
[WhiteElo "2180"]
[BlackElo "2202"]
[Result "1-0"]
[Round "04"]
[TimeControl "180+1"]
[Date "2023.03.14"]
[WhiteClock "0:00:17"]
[BlackClock "0:00:05"]

1. e4 {[%clk 0:03:00]}  c5 {[%clk 0:02:40]} 2. Nf3 {[%clk 0:02:58]}  g6 {[%clk 0:02:27]} 3. c3 {[%clk 0:02:57]}  Bg7 {[%clk 0:02:20]} 4. d4 {[%clk 0:02:57]}  cxd4 {[%clk 0:02:21]} 5. cxd4 {[%clk 0:02:57]}  d5 {[%clk 0:02:21]} 6. e5 {[%clk 0:02:58]}  Nc6 {[%clk 0:02:21]} 7. Bb5 {[%clk 0:02:57]}  Bg4 {[%clk 0:02:21]} 8. Bxc6+ {[%clk 0:02:57]}  bxc6 {[%clk 0:02:20]} 9. Nbd2 {[%clk 0:02:58]}  Nh6 {[%clk 0:02:20]} 10. h3 {[%clk 0:02:55]}  Bxf3 {[%clk 0:02:20]} 11. Nxf3 {[%clk 0:02:55]}  O-O {[%clk 0:02:20]} 12. O-O {[%clk 0:02:53]}  Nf5 {[%clk 0:02:16]} 13. Re1 {[%clk 0:02:47]}  f6 {[%clk 0:02:15]} 14. Bf4 {[%clk 0:02:24]}  Qb6 {[%clk 0:02:04]} 15. b3 {[%clk 0:02:15]}  g5 {[%clk 0:02:04]} 16. Bh2 {[%clk 0:02:11]}  h5 {[%clk 0:01:57]} 17. Qd3 {[%clk 0:02:00]}  fxe5 {[%clk 0:01:39]} 18. Bxe5 {[%clk 0:01:47]}  g4 {[%clk 0:01:11]} 19. hxg4 {[%clk 0:01:38]}  hxg4 {[%clk 0:01:11]} 20. Bxg7 {[%clk 0:01:33]}  Kxg7 {[%clk 0:00:55]} 21. Ng5 {[%clk 0:01:16]}  Rf6 {[%clk 0:00:47]} 22. Rxe7+ {[%clk 0:00:49]}  Kg6 {[%clk 0:00:29]} 23. Ne6 {[%clk 0:00:29]}  Qb5 {[%clk 0:00:13]} 24. Rg7+ {[%clk 0:00:22]}  Kh5 {[%clk 0:00:05]} 25. Rg5+ {[%clk 0:00:19]}  Kh6 {[%clk 0:00:05]} 26. Qd2 {[%clk 0:00:17]} 1-0


[Site "https://www.chess.com"]

[Event "Titled Tuesday Blitz March 14 Late 2023"]
[White "Cuenca Jimenez, Jose Fernando"]
[Black "Bochnicka, Vladimir"]
[WhiteFideId "2255570"]
[BlackFideId "14943450"]
[WhiteElo "2429"]
[BlackElo "2094"]
[Result "1-0"]
[Round "04"]
[TimeControl "180+1"]
[Date "2023.03.14"]
[WhiteClock "0:01:06"]
[BlackClock "0:01:08"]

1. c4 {[%clk 0:03:00]}  c5 {[%clk 0:02:58]} 2. Nf3 {[%clk 0:02:59]}  Nc6 {[%clk 0:02:58]} 3. d4 {[%clk 0:02:59]}  cxd4 {[%clk 0:02:58]} 4. Nxd4 {[%clk 0:03:00]}  e6 {[%clk 0:02:55]} 5. Nc3 {[%clk 0:02:56]}  Nf6 {[%clk 0:02:54]} 6. a3 {[%clk 0:02:53]}  Be7 {[%clk 0:02:54]} 7. e4 {[%clk 0:02:53]}  O-O {[%clk 0:02:54]} 8. Nf3 {[%clk 0:02:53]}  d6 {[%clk 0:02:52]} 9. Be2 {[%clk 0:02:51]}  a6 {[%clk 0:02:52]} 10. O-O {[%clk 0:02:50]}  Qc7 {[%clk 0:02:52]} 11. Bf4 {[%clk 0:02:48]}  Rd8 {[%clk 0:02:51]} 12. Rc1 {[%clk 0:02:46]}  Bd7 {[%clk 0:02:50]} 13. b4 {[%clk 0:02:45]}  Rac8 {[%clk 0:02:48]} 14. h3 {[%clk 0:02:38]}  Ne5 {[%clk 0:02:43]} 15. Nd2 {[%clk 0:02:20]}  Ng6 {[%clk 0:02:34]} 16. Be3 {[%clk 0:02:06]}  Qb8 {[%clk 0:02:09]} 17. Qb3 {[%clk 0:02:04]}  Re8 {[%clk 0:02:09]} 18. a4 {[%clk 0:01:59]}  Bd8 {[%clk 0:02:09]} 19. Rfd1 {[%clk 0:01:49]}  Bc7 {[%clk 0:02:08]} 20. Nf3 {[%clk 0:01:39]}  Bc6 {[%clk 0:02:05]} 21. Bd3 {[%clk 0:01:35]}  Red8 {[%clk 0:01:57]} 22. b5 {[%clk 0:01:33]}  d5 {[%clk 0:01:16]} 23. bxc6 {[%clk 0:01:27]}  bxc6 {[%clk 0:01:16]} 24. Qxb8 {[%clk 0:01:26]}  Bxb8 {[%clk 0:01:15]} 25. cxd5 {[%clk 0:01:21]}  cxd5 {[%clk 0:01:14]} 26. exd5 {[%clk 0:01:22]}  exd5 {[%clk 0:01:14]} 27. Bxa6 {[%clk 0:01:12]}  Rc6 {[%clk 0:01:11]} 28. Bb5 {[%clk 0:01:08]}  Rcd6 {[%clk 0:01:09]} 29. Bc5 {[%clk 0:01:06]}  Re6 {[%clk 0:01:08]} 30. Nd4 {[%clk 0:01:06]} 1-0


[Site "https://www.chess.com"]

[Event "Titled Tuesday Blitz March 14 Late 2023"]
[White "Davidson, Kevin"]
[Black "Aldokhin, Ivan"]
[WhiteFideId "2056810"]
[BlackFideId "24115720"]
[WhiteElo "2151"]
[BlackElo "2322"]
[Result "0-1"]
[Round "04"]
[TimeControl "180+1"]
[Date "2023.03.14"]
[WhiteClock "0:00:01"]
[BlackClock "0:00:16"]

1. e4 {[%clk 0:03:00]}  c5 {[%clk 0:03:00]} 2. Nf3 {[%clk 0:03:00]}  e6 {[%clk 0:03:00]} 3. d4 {[%clk 0:03:00]}  cxd4 {[%clk 0:03:01]} 4. Nxd4 {[%clk 0:03:01]}  a6 {[%clk 0:03:01]} 5. Nc3 {[%clk 0:03:01]}  Qc7 {[%clk 0:03:02]} 6. g3 {[%clk 0:03:02]}  Nf6 {[%clk 0:03:02]} 7. Bg2 {[%clk 0:03:02]}  d6 {[%clk 0:03:03]} 8. O-O {[%clk 0:03:02]}  Be7 {[%clk 0:03:03]} 9. f4 {[%clk 0:03:02]}  O-O {[%clk 0:03:02]} 10. g4 {[%clk 0:03:02]}  Nc6 {[%clk 0:03:01]} 11. Nb3 {[%clk 0:03:00]}  Re8 {[%clk 0:02:55]} 12. g5 {[%clk 0:03:00]}  Nd7 {[%clk 0:02:55]} 13. Rf3 {[%clk 0:03:00]}  b5 {[%clk 0:02:51]} 14. a3 {[%clk 0:03:00]}  Bb7 {[%clk 0:02:50]} 15. Rh3 {[%clk 0:03:00]}  g6 {[%clk 0:02:43]} 16. Bd2 {[%clk 0:02:43]}  Nb6 {[%clk 0:02:33]} 17. Qg4 {[%clk 0:02:37]}  Nc4 {[%clk 0:02:24]} 18. Bc1 {[%clk 0:02:37]}  Qb6+ {[%clk 0:02:16]} 19. Kh1 {[%clk 0:02:32]}  Qf2 {[%clk 0:02:16]} 20. Qe2 {[%clk 0:01:49]}  Qxe2 {[%clk 0:02:07]} 21. Nxe2 {[%clk 0:01:50]}  Rac8 {[%clk 0:01:59]} 22. Rd3 {[%clk 0:01:33]}  a5 {[%clk 0:01:46]} 23. Nd2 {[%clk 0:01:28]}  e5 {[%clk 0:01:23]} 24. Nxc4 {[%clk 0:01:09]}  bxc4 {[%clk 0:01:22]} 25. Rc3 {[%clk 0:01:10]}  Nd4 {[%clk 0:01:14]} 26. Nxd4 {[%clk 0:01:06]}  exd4 {[%clk 0:01:14]} 27. Rg3 {[%clk 0:00:58]}  Bf8 {[%clk 0:01:14]} 28. Bd2 {[%clk 0:00:52]}  Bxe4 {[%clk 0:00:44]} 29. Bxe4 {[%clk 0:00:47]}  Rxe4 {[%clk 0:00:43]} 30. Bxa5 {[%clk 0:00:47]}  Re2 {[%clk 0:00:31]} 31. Rg2 {[%clk 0:00:38]}  Rce8 {[%clk 0:00:29]} 32. Rag1 {[%clk 0:00:24]}  d5 {[%clk 0:00:26]} 33. Rxe2 {[%clk 0:00:22]}  Rxe2 {[%clk 0:00:25]} 34. Rg2 {[%clk 0:00:23]}  Re4 {[%clk 0:00:22]} 35. Bd2 {[%clk 0:00:18]}  Bd6 {[%clk 0:00:20]} 36. Rf2 {[%clk 0:00:17]}  Bc5 {[%clk 0:00:20]} 37. Kg2 {[%clk 0:00:02]}  d3 {[%clk 0:00:16]} 38. cxd3 {[%clk 0:00:03]}  cxd3 {[%clk 0:00:16]} 39. b4 {[%clk 0:00:01]}  Bxf2 {[%clk 0:00:15]} 40. Kxf2 {[%clk 0:00:01]}  Re2+ {[%clk 0:00:16]} 0-1


[Site "https://www.chess.com"]